[Event "German Bundesliga 2024-25"]
[Site "Germany"]
[Date "2024.09.29"]
[Round "2.13"]
[White "Jovanovic, Zoran"]
[Black "Esipenko, Andrey"]
[Result "0-1"]
[ECO "C48"]
[WhiteElo "2525"]
[BlackElo "2677"]
[Annotator "RC"]
[PlyCount "174"]
[EventDate "2024.09.27"]
[EventType "team-tourn"]
[EventCountry "GER"]
[SourceTitle "playchess.com"]
[Source "ChessBase"]
[SourceQuality "1"]
[WhiteTeam "SK Kirchweyhe"]
[BlackTeam "Duesseldorfer SK"]
[TimeControl "40/5400+30:1800+30"]

1. e4 {[%emt 0:00:02]} e5 {[%emt 0:00:13]} 2. Nf3 {[%emt 0:00:10]} Nc6 {[%emt 0:00:08]} 3. Nc3 {[%emt 0:01:05]} Nf6 {[%emt 0:00:34]} 4. Bb5 {[%emt 0:00:11]} Bd6 {[%emt 0:02:03]} 5. d3 {[%emt 0:00:21]} O-O {[%emt 0:07:06]} 6. Bg5 {[%emt 0:12:41]} h6 {[%emt 0:02:13]} 7. Bh4 {[%emt 0:00:20]} Nd4 {[%emt 0:00:37]} 8. Nxd4 {[%emt 0:04:31]} exd4 {[%emt 0:00:11]} 9. Nd5 {[%emt 0:00:01]} g5 {[%emt 0:00:28]} 10. Nxf6+ {[%emt 0:00:03]} Qxf6 {[%emt 0:00:07]} 11. Bg3 {[%emt 0:00:01]} Bxg3 {[%emt 0:03:50]} 12. hxg3 {[%emt 0:00:19]} c6 {[%emt 0:00:12]} 13. Bc4 {[%emt 0:00:08]} d5 {[%emt 0:03:09]} 14. Bb3 {[%emt 0:00:07]} a5 {[%emt 0:06:22]} 15. a4 {[%emt 0:03:40]} Kg7 {[%emt 0:08:36]} 16. exd5 {[%emt 0:27:44]} Re8+ {[%emt 0:03:14]} 17. Kf1 {[%emt 0:00:20]} cxd5 {[%emt 0:00:10]} 18. Qf3 {[%emt 0:00:50]} Qxf3 {[%emt 0:02:30]} 19. gxf3 {[%emt 0:00:04]} Be6 {[%emt 0:04:50]} 20. f4 {[%emt 0:06:10]} f6 {[%emt 0:02:43]} 21. fxg5 {[%emt 0:01:45]} fxg5 {[%emt 0:00:11]} 22. Kg2 {[%emt 0:01:04]} Bf7 {[%emt 0:00:54]} 23. g4 {[%emt 0:02:29]} Re7 {[%emt 0:08:32]} 24. Rae1 {[%emt 0:01:32]} Rae8 {[%emt 0:00:20]} 25. Rxe7 {[%emt 0:00:53]} Rxe7 {[%emt 0:00:02]} 26. Kf3 {[%emt 0:00:44]} Be8 {[%emt 0:12:44]} 27. Kg3 {[%emt 0:13:40]} Bc6 {[%emt 0:01:04]} 28. Rc1 {[%emt 0:00:25]} Re6 {[%emt 0:02:40]} 29. Rh1 {[%emt 0:04:40]} Re5 {[%emt 0:06:39]} 30. Kf3 {[%emt 0:02:40]} Kg6 {[%emt 0:02:06]} 31. Kg3 {[%emt 0:00:15]} Re6 {[%emt 0:00:26]} 32. Kg2 {[%emt 0:04:57]} Re5 {[%emt 0:03:38]} 33. Kg3 {[%emt 0:00:10]} Be8 {[%emt 0:00:26]} 34. Rc1 {[%emt 0:00:53]} Kf6 {[%emt 0:00:58]} 35. Rh1 {[%emt 0:00:14]} Kg7 {[%emt 0:00:07]} 36. Rc1 {[%emt 0:00:02]} Bf7 {[%emt 0:01:15]} 37. Kf3 {[%emt 0:02:05]} Re7 {[%emt 0:02:43]} 38. Ra1 {[%emt 0:02:15]} Bg8 {[%emt 0:06:12]} 39. Rc1 {[%emt 0:01:11]} Be6 {[%emt 0:00:49]} 40. Kg3 {[%emt 0:00:57]} Bf7 {[%emt 0:00:46]} 41. Kf3 {[%emt 0:30:31]} Re8 {[%emt 0:30:55]} 42. Ra1 {[%emt 0:00:36]} Kf6 {[%emt 0:06:37]} 43. Rh1 {[%emt 0:00:12]} Rh8 {[%emt 0:00:08]} 44. Kg3 {[%emt 0:00:41]} Ke5 {[%emt 0:00:33]} 45. Re1+ {[%emt 0:00:45]} Kd6 {[%emt 0:00:10]} 46. Rh1 {[%emt 0:00:08]} Be6 {[%emt 0:00:00]} 47. Rh2 {[%emt 0:00:00]} Bc8 {[%emt 0:00:00]} 48. Rh1 {[%emt 0:00:00]} Bd7 {[%emt 0:00:00]} 49. Rh5 {[%emt 0:00:00]} b5 {[%emt 0:00:00]} 50. axb5 {[%emt 0:00:00]} Bxb5 {[%emt 0:00:00]} 51. f4 {[%emt 0:00:00]} Be8 {[%emt 0:00:00]} 52. Rh1 {[%emt 0:00:00]} gxf4+ {[%emt 0:00:00]} 53. Kxf4 {[%emt 0:00:00]} a4 {[%emt 0:00:00]} 54. Ba2 {[%emt 0:00:00]} Kc5 {[%emt 0:00:00]} 55. Ke5 {[%emt 0:00:00]} Rg8 {[%emt 0:00:00]} 56. Rxh6 {[%emt 0:00:01]} Rxg4 {[%emt 0:00:00]} 57. Rh8 {[%emt 0:00:06]} Bd7 {[%emt 0:00:00]} 58. Rd8 {[%emt 0:01:02]} Rg5+ {[%emt 0:00:00]} 59. Kf6 {[%emt 0:00:22]} Rf5+ {[%emt 0:00:14]} 60. Kg6 {[%emt 0:00:07]} Be6 {[%emt 0:00:10]} 61. Re8 {[%emt 0:01:49]} Kd6 {[%emt 0:00:41]} 62. Ra8 {[%emt 0:03:41]} Rf2 {[%emt 0:00:21]} 63. Rxa4 {[%emt 0:00:20]} Ke5 {[%emt 0:02:53]} 64. Bb3 {[%emt 0:02:56]} Rg2+ {[%emt 0:01:02]} 65. Kh5 {[%emt 0:00:01]} Bg4+ {[%emt 0:03:39]} 66. Kh4 {[%emt 0:02:02]} Bd1 {[%emt 0:00:25]} 67. Ra8 {[%emt 0:01:15]} Bxc2 {[%emt 0:01:35]} 68. Re8+ {[%emt 0:00:37]} Kf4 {[%emt 0:00:53]} 69. Rf8+ {[%emt 0:00:21]} Ke5 {[%emt 0:01:20]} 70. Re8+ {[%emt 0:00:08]} Kd6 {[%emt 0:00:24]} 71. Bxc2 {[%emt 0:02:46]} Rxc2 {[%emt 0:00:08]} 72. Rb8 {[%emt 0:00:03]} Rd2 {[%emt 0:00:36]} 73. Rb3 {[%emt 0:00:01]} Rg2 {[%emt 0:00:30]} 74. Rb8 {[%emt 0:00:37]} Ke5 {[%emt 0:00:32]} 75. Kh3 {[%emt 0:03:29]} Rd2 {[%emt 0:00:38]} 76. Kg4 {[%emt 0:00:03]} Rxd3 {[%emt 0:00:22]} 77. Re8+ {[%emt 0:00:23]} Kd6 {[%emt 0:00:09]} 78. Kf4 {[%emt 0:00:01]} Rb3 {[%emt 0:00:56]} 79. Rd8+ {[%emt 0:00:05]} Ke6 {[%emt 0:01:16]} 80. Re8+ {[%emt 0:00:54]} Kd7 {[%emt 0:00:48]} 81. Rh8 {[%emt 0:01:26]} Re3 {[%emt 0:00:13]} 82. b4 {[%emt 0:01:36]} Kc6 {[%emt 0:00:46]} 83. Rb8 {[%emt 0:00:35]} Re7 {[%emt 0:00:31]} 84. b5+ {[%emt 0:00:16]} Kc5 {[%emt 0:00:27]} 85. b6 {[%emt 0:00:05]} d3 {[%emt 0:00:23]} 86. Rc8+ {[%emt 0:00:54]} Kd4 {[%emt 0:00:29]} 87. Rc7 {[%emt 0:00:54]} Re1 {[%emt 0:00:19]} 0-1

[Event "German Bundesliga 2024-25"]
[Site "Germany"]
[Date "2024.09.29"]
[Round "2.14"]
[White "Sadhwani, Raunak"]
[Black "Van den Doel, Erik"]
[Result "1-0"]
[ECO "C54"]
[WhiteElo "2659"]
[BlackElo "2561"]
[Annotator "RC"]
[PlyCount "67"]
[EventDate "2024.09.27"]
[EventType "team-tourn"]
[EventCountry "GER"]
[SourceTitle "playchess.com"]
[Source "ChessBase"]
[SourceQuality "1"]
[WhiteTeam "Duesseldorfer SK"]
[BlackTeam "SK Kirchweyhe"]
[TimeControl "40/5400+30:1800+30"]

1. e4 {[%emt 0:00:01]} e5 {[%emt 0:03:19]} 2. Nf3 {[%emt 0:00:05]} Nc6 {[%emt 0:00:05]} 3. Bc4 {[%emt 0:00:03]} Bc5 {[%emt 0:00:05]} 4. O-O {[%emt 0:00:06]} Nf6 {[%emt 0:00:04]} 5. d3 {[%emt 0:00:06]} h6 {[%emt 0:00:36]} 6. c3 {[%emt 0:00:14]} d6 {[%emt 0:00:06]} 7. Re1 {[%emt 0:00:45]} O-O {[%emt 0:00:36]} 8. Nbd2 {[%emt 0:00:29]} a6 {[%emt 0:01:11]} 9. Nf1 {[%emt 0:00:10]} Ba7 {[%emt 0:05:38]} 10. Ng3 {[%emt 0:07:24]} Na5 {[%emt 0:00:51]} 11. Bb3 {[%emt 0:00:06]} Nxb3 {[%emt 0:00:07]} 12. axb3 {[%emt 0:00:02]} Bg4 {[%emt 0:30:33]} 13. h3 {[%emt 0:00:33]} Bxf3 {[%emt 0:02:17]} 14. Qxf3 {[%emt 0:00:03]} Nh7 {[%emt 0:00:28]} 15. Rf1 {[%emt 0:06:53]} Kh8 {[%emt 0:05:30]} 16. Kh1 {[%emt 0:01:06]} Qd7 {[%emt 0:13:01]} 17. Nf5 {[%emt 0:03:05]} h5 {[%emt 0:05:25]} 18. Qg3 {[%emt 0:04:28]} g6 {[%emt 0:00:24]} 19. Ne3 {[%emt 0:00:06]} c6 {[%emt 0:09:32]} 20. Bd2 {[%emt 0:11:00]} Rae8 {[%emt 0:01:29]} 21. c4 {[%emt 0:00:56]} Bxe3 {[%emt 0:05:49]} 22. Bxe3 {[%emt 0:03:33]} g5 {[%emt 0:00:04]} 23. d4 {[%emt 0:01:26]} f5 {[%emt 0:06:39]} 24. exf5 {[%emt 0:00:20]} Qxf5 {[%emt 0:00:03]} 25. dxe5 {[%emt 0:03:16]} dxe5 {[%emt 0:00:13]} 26. Ra5 {[%emt 0:01:07]} Qd3 {[%emt 0:01:37]} 27. Re1 {[%emt 0:01:56]} h4 {[%emt 0:04:51]} 28. Qg4 {[%emt 0:00:16]} Rf6 {[%emt 0:01:45]} 29. Bxg5 {[%emt 0:05:10]} Rxf2 {[%emt 0:00:16]} 30. Qxh4 {[%emt 0:02:09]} Rf1+ {[%emt 0:02:23]} 31. Rxf1 {[%emt 0:00:05]} Qxf1+ {[%emt 0:00:02]} 32. Kh2 {[%emt 0:00:09]} b5 {[%emt 0:00:51]} 33. Rxa6 {[%emt 0:01:47]} Rg8 {[%emt 0:00:05]} 34. Ra7 {[%emt 0:00:10]} 1-0

[Event "German Bundesliga 2024-25"]
[Site "Germany"]
[Date "2024.09.29"]
[Round "2.15"]
[White "Zelcic, Robert"]
[Black "Gustafsson, Jan"]
[Result "1-0"]
[ECO "B19"]
[WhiteElo "2444"]
[BlackElo "2604"]
[Annotator "RC"]
[PlyCount "107"]
[EventDate "2024.09.27"]
[EventType "team-tourn"]
[EventCountry "GER"]
[SourceTitle "playchess.com"]
[Source "ChessBase"]
[SourceQuality "1"]
[WhiteTeam "SK Kirchweyhe"]
[BlackTeam "Duesseldorfer SK"]
[TimeControl "40/5400+30:1800+30"]

1. e4 {[%emt 0:00:04]} c6 {[%emt 0:00:12]} 2. d4 {[%emt 0:00:05]} d5 {[%emt 0:00:09]} 3. Nc3 {[%emt 0:00:04]} dxe4 {[%emt 0:00:12]} 4. Nxe4 {[%emt 0:00:05]} Bf5 {[%emt 0:00:15]} 5. Ng3 {[%emt 0:00:17]} Bg6 {[%emt 0:00:13]} 6. Nf3 {[%emt 0:00:57]} Nd7 {[%emt 0:00:17]} 7. h4 {[%emt 0:05:14]} h6 {[%emt 0:01:39]} 8. h5 {[%emt 0:00:04]} Bh7 {[%emt 0:00:10]} 9. Bd3 {[%emt 0:00:03]} Bxd3 {[%emt 0:00:14]} 10. Qxd3 {[%emt 0:00:03]} e6 {[%emt 0:00:14]} 11. Bd2 {[%emt 0:00:12]} Ngf6 {[%emt 0:00:13]} 12. O-O-O {[%emt 0:00:06]} Be7 {[%emt 0:00:17]} 13. Kb1 {[%emt 0:04:39]} Qb6 {[%emt 0:01:19]} 14. Nh4 {[%emt 0:00:04]} O-O-O {[%emt 0:00:45]} 15. Nf3 {[%emt 0:33:10]} Rhe8 {[%emt 0:03:25]} 16. Qe2 {[%emt 0:00:25]} c5 {[%emt 0:22:03]} 17. Ne5 {[%emt 0:03:09]} Rf8 {[%emt 0:00:07]} 18. Qc4 {[%emt 0:11:06]} Kb8 {[%emt 0:07:11]} 19. Bf4 {[%emt 0:02:01]} Ka8 {[%emt 0:01:04]} 20. dxc5 {[%emt 0:04:15]} Nxe5 {[%emt 0:16:10]} 21. Bxe5 {[%emt 0:00:42]} Bxc5 {[%emt 0:00:28]} 22. f3 {[%emt 0:07:21]} Rxd1+ {[%emt 0:20:12]} 23. Rxd1 {[%emt 0:00:10]} Nd5 {[%emt 0:01:24]} 24. Bd4 {[%emt 0:10:12]} Bxd4 {[%emt 0:01:23]} 25. Qxd4 {[%emt 0:00:07]} Qxd4 {[%emt 0:03:16]} 26. Rxd4 {[%emt 0:00:05]} Ne3 {[%emt 0:00:20]} 27. Ne2 {[%emt 0:01:50]} Nxg2 {[%emt 0:01:43]} 28. Rg4 {[%emt 0:00:05]} Ne3 {[%emt 0:02:18]} 29. Rxg7 {[%emt 0:00:08]} Kb8 {[%emt 0:01:17]} 30. Ng3 {[%emt 0:01:26]} Rd8 {[%emt 0:02:20]} 31. b3 {[%emt 0:02:26]} Rd1+ {[%emt 0:01:25]} 32. Kb2 {[%emt 0:00:04]} Rg1 {[%emt 0:01:36]} 33. Kc3 {[%emt 0:04:49]} Rg2 {[%emt 0:02:31]} 34. f4 {[%emt 0:02:48]} Kc8 {[%emt 0:04:45]} 35. f5 {[%emt 0:01:44]} Kd8 {[%emt 0:04:55]} 36. f6 {[%emt 0:01:30]} Ke8 {[%emt 0:01:24]} 37. Ne4 {[%emt 0:00:25]} Rh2 {[%emt 0:00:58]} 38. Nd6+ {[%emt 0:02:22]} Kd7 {[%emt 0:00:02]} 39. Nxb7 {[%emt 0:00:20]} Nd5+ {[%emt 0:00:42]} 40. Kb2 {[%emt 0:00:06]} e5 {[%emt 0:00:44]} 41. Rxf7+ {[%emt 0:10:39]} Ke6 {[%emt 0:00:11]} 42. Nd8+ {[%emt 0:07:48]} Kf5 {[%emt 0:00:28]} 43. Rxa7 {[%emt 0:00:12]} Nxf6 {[%emt 0:01:49]} 44. Nc6 {[%emt 0:04:33]} e4 {[%emt 0:02:22]} 45. Re7 {[%emt 0:00:17]} Kf4 {[%emt 0:00:11]} 46. a4 {[%emt 0:03:47]} e3 {[%emt 0:00:33]} 47. Nb4 {[%emt 0:01:41]} Rxh5 {[%emt 0:01:24]} 48. Nd3+ {[%emt 0:00:12]} Kf3 {[%emt 0:01:37]} 49. Rf7 {[%emt 0:00:08]} Rf5 {[%emt 0:00:08]} 50. a5 {[%emt 0:00:03]} Ke4 {[%emt 0:00:30]} 51. a6 {[%emt 0:00:54]} Nd5 {[%emt 0:00:55]} 52. a7 {[%emt 0:00:12]} Rxf7 {[%emt 0:01:10]} 53. a8=Q {[%emt 0:00:07]} e2 {[%emt 0:00:15]} 54. Qc6 {[%emt 0:00:23]} 1-0

[Event "German Bundesliga 2024-25"]
[Site "Germany"]
[Date "2024.09.29"]
[Round "2.16"]
[White "Bologan, Victor"]
[Black "Zaja, Ivan"]
[Result "1-0"]
[ECO "C18"]
[WhiteElo "2598"]
[BlackElo "2421"]
[Annotator "RC"]
[PlyCount "91"]
[EventDate "2024.09.27"]
[EventType "team-tourn"]
[EventCountry "GER"]
[SourceTitle "playchess.com"]
[Source "ChessBase"]
[SourceQuality "1"]
[WhiteTeam "Duesseldorfer SK"]
[BlackTeam "SK Kirchweyhe"]
[TimeControl "40/5400+30:1800+30"]

1. e4 {[%emt 0:00:02]} e6 {[%emt 0:00:17]} 2. d4 {[%emt 0:00:05]} d5 {[%emt 0:00:05]} 3. Nc3 {[%emt 0:00:03]} Bb4 {[%emt 0:00:32]} 4. e5 {[%emt 0:00:11]} c5 {[%emt 0:00:06]} 5. a3 {[%emt 0:00:23]} Ba5 {[%emt 0:00:07]} 6. b4 {[%emt 0:00:31]} cxd4 {[%emt 0:00:08]} 7. Qg4 {[%emt 0:00:30]} Ne7 {[%emt 0:00:21]} 8. bxa5 {[%emt 0:00:15]} dxc3 {[%emt 0:00:13]} 9. Qxg7 {[%emt 0:00:06]} Rg8 {[%emt 0:00:15]} 10. Qxh7 {[%emt 0:00:06]} Nbc6 {[%emt 0:00:12]} 11. Nf3 {[%emt 0:00:12]} Qc7 {[%emt 0:00:20]} 12. Bf4 {[%emt 0:00:44]} Bd7 {[%emt 0:00:07]} 13. a6 {[%emt 0:01:55]} O-O-O {[%emt 0:00:14]} 14. Qd3 {[%emt 0:00:11]} Rg4 {[%emt 0:07:33]} 15. axb7+ {[%emt 0:00:26]} Kb8 {[%emt 0:00:07]} 16. g3 {[%emt 0:01:30]} Ng6 {[%emt 0:02:22]} 17. Qxc3 {[%emt 0:00:27]} Nxf4 {[%emt 0:02:14]} 18. h3 {[%emt 0:03:10]} Nxh3 {[%emt 0:00:36]} 19. Rxh3 {[%emt 0:00:29]} Re4+ {[%emt 0:00:08]} 20. Kd2 {[%emt 0:02:23]} Qb6 {[%emt 0:03:39]} 21. Rh2 {[%emt 0:05:20]} d4 {[%emt 0:09:45]} 22. Qd3 {[%emt 0:00:55]} Qa5+ {[%emt 0:00:30]} 23. Kd1 {[%emt 0:03:27]} Rxe5 {[%emt 0:07:48]} 24. Nxe5 {[%emt 0:06:30]} Nxe5 {[%emt 0:01:12]} 25. Rh5 {[%emt 0:03:59]} f5 {[%emt 0:04:41]} 26. Qd2 {[%emt 0:01:11]} Qd5 {[%emt 0:14:40]} 27. f4 {[%emt 0:28:59]} d3 {[%emt 0:12:26]} 28. Kc1 {[%emt 0:06:17]} Qf3 {[%emt 0:14:07]} 29. fxe5 {[%emt 0:03:11]} Qxh5 {[%emt 0:06:22]} 30. Qxd3 {[%emt 0:00:35]} Qg5+ {[%emt 0:00:34]} 31. Kb2 {[%emt 0:01:43]} Bc6 {[%emt 0:00:26]} 32. Qc3 {[%emt 0:02:19]} Bxb7 {[%emt 0:01:28]} 33. Bc4 {[%emt 0:00:54]} Rc8 {[%emt 0:05:13]} 34. Rd1 {[%emt 0:05:45]} f4 {[%emt 0:00:45]} 35. Rd7 {[%emt 0:06:58]} fxg3 {[%emt 0:03:20]} 36. Qd4 {[%emt 0:01:57]} Rxc4 {[%emt 0:04:25]} 37. Qxc4 {[%emt 0:00:50]} Qxe5+ {[%emt 0:00:01]} 38. c3 {[%emt 0:04:26]} a6 {[%emt 0:00:19]} 39. a4 {[%emt 0:01:50]} Ka7 {[%emt 0:01:36]} 40. Qb4 {[%emt 0:03:23]} Qb8 {[%emt 0:00:40]} 41. Qd4+ {[%emt 0:30:35]} Ka8 {[%emt 0:30:01]} 42. Rd8 {[%emt 0:00:17]} Bc8+ {[%emt 0:00:11]} 43. Ka3 {[%emt 0:03:41]} Qc7 {[%emt 0:00:00]} 44. Rg8 {[%emt 0:00:00]} e5 {[%emt 0:00:00]} 45. Qe4+ {[%emt 0:00:00]} Ka7 {[%emt 0:00:00]} 46. Rxg3 {[%emt 0:00:00]} 1-0